Cogmind - Beta 13 @@@ ROGUE MODE // 2024.04.09 @ 16:58:08 Player: Dogenati Result: Destroyed by G-34 Mercenary with Small Laser Performance ------------- Evolutions (1) 500 Regions Visited (2) 400 Robots Destroyed (40) 200 Value Destroyed (1003) 1003 Prototype IDs (4) 80 Alien Tech Used (0) 0 Bonus (18) 18 TOTAL SCORE: 2201 Bonus ------- High Alert Combat Kills 18 Cogmind --------- Core Integrity 0/400 Matter 39/300 Energy 70/100 System Corruption 3% Temperature Cool (33) Movement Core (450) Ox8 Location -9/Materials Parts ------- > --- POWER (1) -------- (None) > --- PROPULSION (3) --- (None) > --- UTILITY (3) ------ Large Storage Unit Signal Interpreter > --- WEAPON (2) ------- Field Laser Hammer > --- INVENTORY (15) --- Heat Sink Medium Storage Unit Large Storage Unit High-capacity Matter Pod (200) Medium Armor Plating Heavy Assault Rifle Mini Grenade Launcher Datajack Peak State ------------ > --- POWER ------------ Ion Engine > --- PROPULSION ------- Light Treads Light Treads Improved Treads > --- UTILITY ---------- Small Storage Unit Large Storage Unit Signal Interpreter > --- WEAPON ----------- Light Assault Rifle Heavy Assault Rifle > --- INVENTORY -------- Light Ion Engine Light Treads Light Treads Heat Sink Medium Storage Unit Large Storage Unit High-capacity Matter Pod Grenade Launcher Mini Grenade Launcher Datajack Hammer [Rating: 12] Favorites ----------- Power Ion Engine Engine Ion Engine Propulsion Light Treads Treads Light Treads Utility Small Storage Unit Device ECM Suite Storage Small Storage Unit Processor Signal Interpreter Weapon Light Assault Rifle Energy Gun EM Pulse Gun Ballistic Gun Light Assault Rifle Launcher Grenade Launcher Impact Weapon Hammer Build | -11 -10 -9 ------- Run | Yrd Mat Mat Slots Evolved 2 | . . 2 Power . | . . . Propulsion 1 | . . 1 Utility 1 | . . 1 Weapon . | . . . Parts Attached 28 | 6 7 15 Power 4 | 1 2 1 Engine 4 | 1 2 1 Core . | . . . Reactor . | . . . Propulsion 8 | 2 2 4 Treads 8 | 2 2 4 Leg . | . . . Wheel . | . . . Hover . | . . . Flight . | . . . Utility 4 | 1 1 2 Device 1 | . . 1 Storage 2 | 1 1 . Processor 1 | . . 1 Hackware . | . . . Protection . | . . . Artifact . | . . . Weapon 12 | 2 2 8 Energy Gun 4 | 2 1 1 Energy Cannon . | . . . Ballistic Gun 4 | . 1 3 Ballistic Cannon . | . . . Launcher 3 | . . 3 Special Weapon . | . . . Impact Weapon 1 | . . 1 Slashing Weapon . | . . . Piercing Weapon . | . . . Special Melee Weapon . | . . . Unidentified Prototypes . | . . . Corrupted Parts 1 | . . 1 System Corruption 3 | . . 3 Parts Lost 9 | . . 9 Power 2 | . . 2 Propulsion 4 | . . 4 Utility 2 | . . 2 Weapon 1 | . . 1 Highest Loss Streak 5 | . . 5 To Critical Strikes . | . . . Average Slot Usage (%) 96 | . 98 92 Engine 12 | . 14 9 Treads 28 | . 27 30 Device 1 | . . 4 Storage 25 | . 27 22 Processor 2 | . . 5 Energy Gun 15 | . 22 6 Ballistic Gun 8 | . 4 13 Naked Turns . | . . . Heaviest Build 36 | 11 33 36 Greatest Support 63 | 40 40 63 Greatest Overweight (x) 10 | . 10 9 Average Overweight (x) . | . . . Largest Inventory Capacity 15 | 8 15 15 Average Capacity 14 | 6 14 15 Most Carried 15 | 6 15 14 Average Carried 10 | 3 10 11 Final Capacity 15 | 8 15 15 Final Carried 10 | 6 10 8 Class Distribution -------------------- 100% | Mutant Dominant Class ---------------- Mutant | -10/Materials Mutant | -9/Materials Resources | -11 -10 -9 ----------- Run | Yrd Mat Mat Matter Collected 623 | 179 125 319 Remotely . | . . . Salvage Created 1077 | . 248 829 Parts 76 | . 16 60 Haulers Intercepted . | . . . Recyclers Shooed 3 | . 1 2 Parts Field Recycled . | . . . Retrieved Matter . | . . . Parts Self-Destructed . | . . . Prevented . | . . . Kills | -11 -10 -9 ------- Run | Yrd Mat Mat Combat Hostiles Destroyed 32 | . 8 24 Guns 21 | . 8 13 AOE 11 | . . 11 Classes Destroyed 6 | . 3 3 Worker 2 | . . 2 Recycler 1 | . . 1 Watcher 5 | . 1 4 Swarmer 11 | . 4 7 Grunt 16 | . 4 12 Sentry 5 | . . 5 Best Kill Streak 9 | . 3 9 Combat Bots Only 7 | . 2 7 Max Kills in Single Turn 5 | . 1 5 Gunslinging . | . . . Exploded 4 | . . 4 Melee . | . . . Uniques/NPCs Destroyed . | . . . Combat | -11 -10 -9 -------- Run | Yrd Mat Mat Hostile Shots Fired 306 | . 63 243 Missed 82 | . 17 65 Damage Taken 2359 | . 439 1920 Core 472 | . 63 409 Absorbed by Shields . | . . . Regen/Repaired (Parts) 10 | . 10 . Core Remaining (%) 87 | 100 74 . Volleys Fired 99 | . 33 66 Largest 2 | . 2 2 Hottest 90 | . 90 63 Shots Fired 184 | . 66 118 Gun 171 | . 66 105 Cannon . | . . . Launcher 13 | . . 13 Special . | . . . Kinetic 73 | . 2 71 Thermal 64 | . 62 2 Explosive 13 | . . 13 Electromagnetic 34 | . 2 32 Robot Hit Streak 7 | . 4 7 Robot Miss Streak 5 | . 5 4 Penetration Max . | . . . Secondary Targets 4 | . 2 2 Max Gunslinging Chain 1 | . 1 1 Shots Hit Robots 103 | . 36 67 Core Hits 74 | . 15 59 Critical Kills . | . . . Critical Parts Destroyed 1 | . . 1 Critical Strikes 4 | . 3 1 Burn 3 | . 3 . Smash 1 | . . 1 Melee Attacks 5 | . . 5 Impact 5 | . . 5 Slashing . | . . . Piercing . | . . . Sneak Attacks . | . . . Combat Hostiles . | . . . Follow-up Attacks . | . . . Damage Inflicted 2443 | . 463 1980 Guns 1220 | . 463 757 Cannons . | . . . Explosions 1067 | . . 1067 Melee 118 | . . 118 Ramming 38 | . . 38 Kinetic 463 | . . 463 Thermal 468 | . 435 33 Explosive 1067 | . . 1067 Electromagnetic 289 | . 28 261 Impact 118 | . . 118 Slashing . | . . . Piercing . | . . . Highest Corruption 3 | . . 3 Average Corruption 3 | . . 3 Corruption Purged . | . . . Corruption Blocked . | . . . Effects 1 | . . 1 Misfires 1 | . . 1 Overload Shots . | . . . Overflow Damage 46 | . . 46 Projectiles . | . . . Explosions 1 | . . 1 Melee 45 | . . 45 Knockbacks 1 | . . 1 Impact 1 | . . 1 Kinetic . | . . . Secondary . | . . . Self-Inflicted Damage . | . . . Shots . | . . . Rammed 4 | . . 4 Targets Rammed 5 | . . 5 Kicked . | . . . Crushed 1 | . . 1 Highest Temperature 240 | . 240 60 Average Temperature 57 | . 80 19 Received Heat Transfer 768 | . 132 636 Siege Activations . | . . . Robots Corrupted . | . . . Combat Hostiles . | . . . Parts Fried 1 | . . 1 Impact Corruptions 2 | . . 2 Robots Melted . | . . . Combat Hostiles . | . . . Parts Melted 2 | . 2 . Heat Transferred 1436 | . 1362 74 Parts Sabotaged . | . . . Parts Stolen . | . . . Parts Stripped . | . . . Power Chain Reactions . | . . . Alert | -11 -10 -9 ------- Run | Yrd Mat Mat Peak Influence 496 | . 128 496 Initial 17 | . . 17 Average 82 | . 25 173 Maximum Alert Level 2 | . . 2 Low Security (%) 86 | 100 100 66 Level 1 7 | . . 18 Level 2 6 | . . 15 Level 3 . | . . . Level 4 . | . . . Level 5 . | . . . High Security . | . . . Max Security . | . . . Squads Dispatched 6 | . 2 4 Investigation 4 | . 1 3 Extermination . | . . . Reinforcement 2 | . 1 1 Assault . | . . . Garrison . | . . . Intercept . | . . . Searches Triggered . | . . . Construction Impeded 1 | . . 1 Haulers Reinforced . | . . . Active Scanning Responses . | . . . Cargo Convoy Interrupts . | . . . Stealth | -11 -10 -9 --------- Run | Yrd Mat Mat Distress Signals 3 | . 1 2 Communications Jammed . | . . . Distress Signals . | . . . Times Spotted 53 | . 16 37 Peak Tracking Total 8 | . 5 8 Tactical Retreats 2 | . . 2 Traps | -11 -10 -9 ------- Run | Yrd Mat Mat Traps Triggered . | . . . Indirectly . | . . . Trap Hack Attempts . | . . . Triggered . | . . . Disarmed . | . . . Reprogrammed . | . . . Reused . | . . . Traps Extracted . | . . . Installed . | . . . Triggered . | . . . Machines | -11 -10 -9 ---------- Run | Yrd Mat Mat Machines Disabled 1 | . . 1 Max in Single Turn 1 | . . 1 Machines Repaired . | . . . Machines Dismantled . | . . . Machines Sabotaged . | . . . Overloaded Fab Kills . | . . . Hacking | -11 -10 -9 --------- Run | Yrd Mat Mat Machines Accessed 14 | . 7 7 Terminals 11 | . 5 6 Fabricators . | . . . Repair Stations 1 | . 1 . Recycling Units 1 | . 1 . Scanalyzers 1 | . . 1 Garrison Access . | . . . Total Hacks 68 | . 34 34 Successful 41 | . 23 18 Failed 27 | . 11 16 Catastrophic 2 | . 1 1 Database Lockouts . | . . . Manual 3 | . 1 2 Terminals 57 | . 27 30 Fabricators . | . . . Repair Stations 3 | . 3 . Recycling Units 4 | . 4 . Scanalyzers 4 | . . 4 Garrison Access . | . . . Terminal Hacks 32 | . 17 15 Record 15 | . 7 8 Prototype ID Bank 2 | . 1 1 Branch Access Points 1 | . . 1 Alert Level 7 | . 5 2 Dispatch Records 2 | . 1 1 Patrol Status 1 | . 1 . Investigation Status 2 | . 1 1 Hauler Manifests 1 | . 1 . Zone Layout 1 | . . 1 Fabricator Hacks . | . . . Repair Station Hacks 3 | . 3 . Scan Component 2 | . 2 . Repair 1 | . 1 . Recycling Unit Hacks 3 | . 3 . Recycle Component 1 | . 1 . Process 1 | . 1 . Report Inventory 1 | . 1 . Scanalyzer 3 | . . 3 Insert Component 2 | . . 2 Analyze 1 | . . 1 Garrison Access Hacks . | . . . Unauthorized Hacks . | . . . Terminals . | . . . Fabricators . | . . . Repair Stations . | . . . Recycling Units . | . . . Scanalyzers . | . . . Garrison Access . | . . . Data Cores Recovered . | . . . Used . | . . . Hacking Detections 13 | . 6 7 Full Trace Events 11 | . 5 6 Feedback Events . | . . . Feedback Blocked . | . . . Robot Schematics Acquired . | . . . Robots Built . | . . . Authchips . | . . . Time . | . . . Total Robot Build Rating . | . . . Part Schematics Acquired 1 | . . 1 Parts Built . | . . . Authchips . | . . . Time . | . . . Total Part Build Rating . | . . . Parts Repaired 1 | . 1 . Time 26 | . 26 . Parts Recycled 1 | . 1 . Recycled Matter 132 | . 132 . Retrieved Matter . | . . . Retrieved Components . | . . . Parts Scanalyzed 1 | . . 1 Part Schematics Acquired 1 | . . 1 Parts Damaged . | . . . Bothacking | -11 -10 -9 ------------ Run | Yrd Mat Mat Used RIF Installer . | . . . Robots Hacked . | . . . Non-combat . | . . . Combat . | . . . Robot Hacks Applied . | . . . Relay Couplers Released . | . . . Fabnet Peak Effective % . | . . . Robots Rewired . | . . . Allies Hacked . | . . . Hacks Repelled . | . . . Allies | -11 -10 -9 -------- Run | Yrd Mat Mat Total Allies . | . . . Largest Group . | . . . Highest-Rated Group . | . . . Highest-Rated Ally . | . . . Total Orders . | . . . Ally Attacks . | . . . Total Damage . | . . . Kills . | . . . Allies Corrupted . | . . . Allies Melted . | . . . Intel | -11 -10 -9 ------- Run | Yrd Mat Mat Robot Analysis Total . | . . . Derelict Logs Recovered . | . . . Drone Launches . | . . . Drone Recoveries . | . . . Exploration | -11 -10 -9 ------------- Run | Yrd Mat Mat Turns Passed 2639 | 133 1466 1040 Spaces Moved 1425 | 103 821 501 Core 53 | 44 5 4 Treads 1372 | 59 816 497 Legs . | . . . Wheels . | . . . Hover . | . . . Flight . | . . . Fastest Speed 50 | 50 160 160 Average Speed 158 | 113 162 162 Slowest Speed 550 | 160 550 500 Overloaded Moves . | . . . Propulsion Burnouts . | . . . Robots Hopped . | . . . Cave-ins Triggered . | . . . Exploration Rate (%) 40 | 6 78 37 Regions Visited 2 Branch Regions . Pre-discovered Areas . | . . . Known Exits Taken . | . . . Unknown Exits Taken 2 | 1 1 . Scrap Searched . | . . . Spaces Dug 7 | . . 7 Terrain Destroyed 90 | . . 90 Melee . | . . . Projectile . | . . . AOE 90 | . . 90 Terrain Rammed . | . . . Walls Destroyed . | . . . Machines Disabled . | . . . Actions | -11 -10 -9 --------- Run | Yrd Mat Mat Total 1620 | 120 894 606 Wait 3 | . 3 . Move 1423 | 102 820 501 Hop . | . . . Pick Up 37 | 12 17 8 Fast Attach . | . . . Attach 19 | 6 5 8 Detach 6 | . 4 2 Swap 9 | . 2 7 Drop 14 | . 10 4 Fire 99 | . 33 66 Melee 5 | . . 5 Ram . | . . . Kick . | . . . Crush 5 | . . 5 Escape Stasis . | . . . Rewire . | . . . Trap . | . . . Miscellaneous . | . . . Route ------- -11/Scrapyard -10/Materials (discovered 4 exits: *Mat x3 / [*Min]) -9/Materials (discovered 3 exits: [*Mat] / Min / *Sto) History --------- Turn | Location | Event 5 | -11/Scrapyard | Discovered new exit (range 15) 134 | -11/Scrapyard | Entered Materials 302 | -10/Materials | Build established: Mutant 529 | -10/Materials | Discovered new exit (range 16) 913 | -10/Materials | Discovered new exit (range 12) 1214 | -10/Materials | Discovered new exit (range 12) 1221 | -10/Materials | Repaired Lgt. Ion Engine? 1530 | -10/Materials | Discovered new exit (range 5) 1600 | -10/Materials | Entered another Materials area 1600 | -9/Materials | Evolved 2 slots: Propulsion x1, Utility x1 1706 | -9/Materials | Identified exit to Mines 1706 | -9/Materials | Identified exit to Storage 2066 | -9/Materials | Discovered new exit (range 8) 2496 | -9/Materials | Destroyed 7 combat bots 2554 | -9/Materials | Lost 3 parts (1p1n1w) 2607 | -9/Materials | Core integrity fell below 50% 2631 | -9/Materials | Core integrity fell below 20% 2640 | -9/Materials | Destroyed by G-34 Mercenary with Small Laser Last Messages --------------- U-05 Engineer lays Concrete. R-06 Scavenger collects Com. Wheel. Imp. Treads destroyed. U-05 Engineer builds a Wall. U-05 Engineer lays Concrete. M-13 Machinist fits Backup Propulsion I on S-10 Pest. Lgt. Treads destroyed. U-05 Engineer builds a Wall. S-10 Pest misfires. U-05 Engineer builds a Wall. M-13 Machinist repairs Flight Unit. U-05 Engineer builds a Wall. U-05 Engineer lays Concrete. Lgt. Ion Engine destroyed. U-05 Engineer builds a Wall. Acquired Field Laser. S-10 Pest IFF system glitched. S-10 Pest destroyed. Sml. Storage Unit destroyed. Map ----- +----------------------------------------------------+ | | | | | | | | | | | ?????????????????????????????????????????????????? | | ?????????????????????????????????????????????????? | | ?????????????????????????????????????????????????? | | ?????????????????????????????????????????????????? | | ?????????????????????????????????????????????????? | | ?????????????????????????????????????????????????? | | ?????????????????????????????????????????????????? | | ?????????????????????????????????????????????????? | | ?????????????????????????????????????????????????? | | ?????????????????????????????????????????????????? | | ?????????????????????????????????????????????????? | | ?????????????????????????????????????????????????? | | ?????????????????????????????+##+#???????????????? | | ????????????????????????????? ???????????????? | | ????????????????????????????+ ????????????????? | | ????????????????????????????# ????????????????? | | ????????????????????????????# #??#?##+####+###?? | | ????????????????????????????# #??? ##? | | ???????????????????????###### #??? ?? | | ???????????????????????#[[ ## #??""" """ #?? | | ???????????????????????#[@ ## #? """ """ "Y" #?? | | ???????????????????????#!!s## ## """ """ """ #?? | | ???????????????????????#!g%## # * ### | | ???????????????????????#s!g ####### =# ## | | ???????????????????????#!! % % % | | ???????????????????????##### % %%% | | ???????????????????????????# %% | | ???????????????????????????# ###/### # ### | | ???????????????????????????## ## [% | | ????????????????????????????# # # | | ????????????????????????????# ## + | | ????????????????????????????# ## # | | ????????????????????????????# ## =# | | ????????????????????????????# ## # | | ????????????????????????????# ######### | | ???????????????????????????? # ## | | ??????????????????????????? # ! ## | | ??????????????????????????? # ######### | | ??????????????????????????### + """ #???# | | ????????????????????????????# # """ #???# "" | | ????????????????????????????# # """ #???# ""S | | ????????????????????????????# # """ #???# "" | | ????????????????????????????# # ?? #???# | | ????????????????????????????? # ?? #??## | | ????????????????????????????????###???####??# | +----------------------------------------------------+ Best States ------------- Heat Dissipation 28 Energy Generation 10 Energy Capacity 250 Matter Stores 300 Matter Capacity 300 Sight Range 16 Terrain Scan Density 10 ECM Strength 1 Evasion (%) 50 Recoil Reduction 3 Item Schematics ----------------- Datajack | -9/Materials | Scanalyzed Robot Schematics ------------------ None Fabricated ------------ Nothing Alien Tech Used ----------------- None Achievements -------------- Librarian Party Time Shopping List Storm Trooper Challenges ------------ None Game ------ Seed MasterMiningHammer Manual? 0 Play Time 00:30:38 Cumulative 1.6 hours Start 2024.04.09 @ 16:09:36 End 2024.04.09 @ 16:58:08 Sessions 1 Manual Loads 0 Difficulty Rogue Special Mode None Game No. 4 Rogue 4 Adventurer 0 Explorer 0 Win Type - Total 0 Types 0/0/0/0/0/0/0/0/0 Lore% 1 Gallery% 3 Achievement% 3 Wizard Run 0 Options --------- Layout 1 ASCII 0 Keyboard 1 Movement Numpad Keybinds 0 Fullscreen 2 Font 24/Smallcaps Map View 50x35 Zoom Use 0% Tactical HUD 0 Map Filters NONE Filters NONE Steam 1 RUN: e6228507-341d-4924-87e0-5b1182e8823a